Workbook

Sheet Лист1
A1: Школа | C1: МБОУ "Мало-Лызинская СОШ" | G1: Утвердил: | H1: должность | I1: Директор
A2: Форма ежедневного меню приготавливаемых блюд | H2: фамилия | I2: Хакимов Н.Ф.
A3: Возрастная категория | F3: 7-11 лет | H3: дата | J3: Март | K3: 2025
I4: день | J4: месяц | K4: год
A5: Неделя | B5: День недели | C5: Прием пищи | D5: Раздел меню | E5: № рецептуры | F5: Блюда | G5: Вес блюда, г | H5: Цена | I5: Калорийность | J5: Белки | K5: Жиры | L5: Углеводы
A6: 1 | B6: 1 | C6: Завтрак | D6: гор.блюдо | E6: ТТК от 01.11.2022 | F6: Котлеты "Аппетитные" мясо-куриные | G6: 90 | I6: 208 | J6: 13.095 | K6: 13.749 | L6: 7.996
D7: гор.блюдо | E7: № 304/2015г Дели | F7: Каша гречневая вязкая | G7: 150 | I7: 143 | J7: 3.462 | K7: 4.634 | L7: 21.786
D8: гор.напиток | E8: ТТК от 2021г | F8: Чай с сахаром | G8: 208 | I8: 32 | J8: 0.021 | K8: 0.005 | L8: 7.989
D9: хлеб | F9: Хлеб ржано-пшеничный/ Хлеб пшеничный | G9: 40 | I9: 91 | J9: 2.520 | K9: 0.360 | L9: 18.840
D10: фрукты
D11: Конд. изд. | F11: Печенье весовое | G11: 12.8 | I11: 57 | J11: 0.883 | K11: 1.766 | L11: 9.485
D13: итого | G13: =SUM(G6:G12) -> 500.8 | I13: =SUM(I6:I12) -> 531 | J13: =SUM(J6:J12) -> 19.981 | K13: 20.514 | L13: 66.096
A14: =A6 -> 1 | B14: =B6 -> 1 | C14: Обед | D14: закуска
D15: 1 блюдо
D16: 2 блюдо
D17: гарнир
D18: напиток
D19: хлеб бел.
D20: хлеб черн.
D23: итого | G23: =SUM(G14:G22) -> 0 | H23: =SUM(H14:H22) -> 0 | I23: 0 | J23: 0 | K23: 0 | L23: 0
A24: =A6 -> 1 | B24: =B6 -> 1 | C24: Итого за день: | G24: =G13+G23 -> 500.8 | H24: =H13+H23 -> 0 | I24: 531 | J24: 19.981 | K24: 20.514 | L24: 66.096
A25: 1 | B25: 2 | C25: Завтрак | D25: гор.блюдо | E25: ТТК №2738 от 7.12.2023 | F25: Жаркое из филе куриных грудок | G25: 200 | I25: 371 | J25: 12.750 | K25: 17.790 | L25: 39.880
D26: гор.блюдо
D27: гор.напиток | E27: ТТК от 2021г | F27: Чай с сахаром | G27: 208 | I27: 32 | J27: 0.021 | K27: 0.005 | L27: 7.989
D28: хлеб | F28: Хлеб ржано-пшеничный/ Хлеб пшеничный | G28: 40 | I28: 91 | J28: 2.52 | K28: 0.36 | L28: 18.84
D30: фрукты | E30: № 338 | F30: Плоды и ягоды свежие (яблоки) | G30: 100 | I30: 42 | J30: 0.360 | K30: 0.360 | L30: 8.820
D33: итого | G33: =SUM(G25:G32) -> 548 | I33: =SUM(I25:I31) -> 536 | J33: =SUM(J25:J32) -> 15.651 | K33: =SUM(K25:K32) -> 18.515 | L33: =SUM(L25:L32) -> 75.529
A34: =A25 -> 1 | B34: =B25 -> 2 | C34: Обед | D34: закуска
D35: 1 блюдо
D36: 2 блюдо
D37: гарнир
D38: напиток
D39: хлеб бел.
D40: хлеб черн.
D43: итого | G43: =SUM(G34:G42) -> 0 | H43: =SUM(H34:H42) -> 0 | I43: 0 | J43: 0 | K43: 0 | L43: 0
A44: =A25 -> 1 | B44: =B25 -> 2 | C44: Итого за день: | G44: =G33+G43 -> 548 | H44: =H33+H43 -> 0 | I44: 536 | J44: 15.651 | K44: 18.515 | L44: 75.529
A45: 1 | B45: 3 | C45: Завтрак | D45: гор.блюдо | E45: №243/2015 Дели | F45: Сосиски отварные | G45: 100 | I45: 156 | J45: 8.700 | K45: 11.500 | L45: 4.400
D46: гор.блюдо | E46: №309/2015г Дели | F46: Макароны твердых сортов отварные | G46: 150 | I46: 212 | J46: 5.602 | K46: 5.068 | L46: 35.906
D47: гор.напиток | E47: ТТК 2021г | F47: Напиток из урюка | G47: 200 | I47: 32 | J47: 0.020 | L47: 7.990
D48: хлеб | F48: Хлеб ржано-пшеничный/ Хлеб пшеничный | G48: 40 | I48: 91 | J48: 2.520 | K48: 0.360 | L48: 18.840
D49: фрукты
D50: Конд. изд. | F50: Печенье весовое | G50: 12.8 | I50: 57 | J50: 0.883 | K50: 1.766 | L50: 9.485
D52: итого | G52: =SUM(G45:G51) -> 502.8 | I52: =SUM(I45:I51) -> 548 | J52: =SUM(J45:J51) -> 17.725 | K52: 18.694 | L52: 76.621
A53: =A45 -> 1 | B53: =B45 -> 3 | C53: Обед | D53: закуска
D54: 1 блюдо
D55: 2 блюдо
D56: гарнир
D57: напиток
D58: хлеб бел.
D59: хлеб черн.
D62: итого | G62: =SUM(G53:G61) -> 0 | H62: =SUM(H53:H61) -> 0 | I62: 0 | J62: 0 | K62: 0 | L62: 0
A63: =A45 -> 1 | B63: =B45 -> 3 | C63: Итого за день: | G63: =G52+G62 -> 502.8 | H63: =H52+H62 -> 0 | I63: 548 | J63: 17.725 | K63: 18.694 | L63: 76.621
A64: 1 | B64: 4 | C64: Завтрак | D64: гор.блюдо | E64: ТТК № 2737 от 07.12.2023 | F64: Плов с говядиной | G64: 190 | I64: 431 | J64: 15.44 | K64: 18.29 | L64: 51.2
D65: гор.блюдо
D66: гор.напиток | E66: ТТК от 2021г | F66: Чай с сахаром | G66: 208 | I66: 32 | J66: 0.021 | K66: 0.005 | L66: 7.989
D67: хлеб | F67: Хлеб ржано-пшеничный/ Хлеб пшеничный | G67: 42 | I67: 95 | J67: 2.62 | K67: 0.38 | L67: 19.74
D68: фрукты
E69: №52/2015г Дели | F69: Салат из свеклы отварной (с маслом) | G69: 60 | I69: 22 | J69: 1.33 | K69: 1.36 | L69: 1.14
D71: итого | G71: =SUM(G64:G70) -> 500 | I71: =SUM(I64:I70) -> 580 | J71: 19.411 | K71: =SUM(K64:K70) -> 20.035 | L71: 80.069
A72: =A64 -> 1 | B72: =B64 -> 4 | C72: Обед | D72: закуска
D73: 1 блюдо
D74: 2 блюдо
D75: гарнир
D76: напиток
D77: хлеб бел.
D78: хлеб черн.
D81: итого | G81: =SUM(G72:G80) -> 0 | H81: =SUM(H72:H80) -> 0 | I81: 0 | J81: 0 | K81: 0 | L81: 0
A82: =A64 -> 1 | B82: =B64 -> 4 | C82: Итого за день: | G82: =G71+G81 -> 500 | H82: =H71+H81 -> 0 | I82: 580 | J82: 19.411 | K82: 20.035 | L82: 80.069
A83: 1 | B83: 5 | C83: Завтрак | D83: гор.блюдо | E83: ТТК 2020 г | F83: Ёжики с рисом из мяса птицы в соусе для запекания | G83: 90 | I83: 196 | J83: 9.768 | K83: 13.409 | L83: 9.117
D84: гор.блюдо | E84: №312/2015 Дели | F84: Пюре картофельное | G84: 150 | I84: 144 | J84: 3.437 | K84: 4.556 | L84: 21.451
D85: гор.напиток | E85: ТТК от 2021г | F85: Чай с сахаром | G85: 208 | I85: 32 | J85: 0.021 | K85: 0.005 | L85: 7.989
D86: хлеб | F86: Хлеб ржано-пшеничный/ Хлеб пшеничный | G86: 40 | I86: 91 | J86: 2.52 | K86: 0.36 | L86: 18.84
D87: фрукты
D88: Конд. изд. | F88: Печенье весовое | G88: 12.8 | I88: 57 | J88: 0.883 | K88: 1.766 | L88: 9.485
D90: итого | G90: =SUM(G83:G89) -> 500.8 | I90: =SUM(I83:I89) -> 520 | J90: 16.629 | K90: 20.096 | L90: 66.882
A91: =A83 -> 1 | B91: =B83 -> 5 | C91: Обед | D91: закуска
D92: 1 блюдо
D93: 2 блюдо
D94: гарнир
D95: напиток
D96: хлеб бел.
D97: хлеб черн.
D100: итого | G100: =SUM(G91:G99) -> 0 | H100: =SUM(H91:H99) -> 0 | I100: 0 | J100: 0 | K100: 0 | L100: 0
A101: =A83 -> 1 | B101: =B83 -> 5 | C101: Итого за день: | G101: =G90+G100 -> 500.8 | H101: 0 | I101: 520 | J101: 16.629 | K101: 20.096 | L101: 66.882
A102: 1 | B102: 6 | C102: Завтрак | D102: гор.блюдо | E102: ТТК 2015г | F102: Пельмени "Для умников и умниц" отварные с маслом | G102: 160 | I102: 355 | J102: 16.156 | K102: 14.79 | L102: 38.063
D104: гор.напиток | E104: ТТК от 2021г | F104: Чай с сахаром | G104: 208 | I104: 32 | J104: 0.021 | K104: 0.005 | L104: 7.989
D105: хлеб | F105: Хлеб ржано-пшеничный/ Хлеб пшеничный | G105: 42 | I105: 95 | J105: 2.62 | K105: 0.38 | L105: 19.74
D106: фрукты | E106: №338 | F106: Плоды и ягоды свежие (яблоки) | G106: 100 | I106: 42 | J106: 0.360 | K106: 0.360 | L106: 8.820
D109: итого | G109: =SUM(G102:G108) -> 510 | I109: =SUM(I102:I108) -> 524 | J109: 19.157 | K109: 15.535 | L109: =SUM(L102:L108) -> 74.612
A110: =A102 -> 1 | B110: 6 | C110: Обед | D110: закуска
D111: 1 блюдо
D112: 2 блюдо
D113: гарнир
D114: напиток
D115: хлеб бел.
D116: хлеб черн.
D119: итого | G119: =SUM(G110:G118) -> 0 | H119: =SUM(H110:H118) -> 0 | I119: 0 | J119: 0 | K119: 0 | L119: 0
A120: =A102 -> 1 | B120: =B102 -> 6 | C120: Итого за день: | G120: =G109+G119 -> 510 | H120: 0 | I120: 524 | J120: 19.157 | K120: 15.535 | L120: 74.612
A121: 2 | B121: 1 | C121: Завтрак | D121: гор.блюдо | E121: ТТК от 09.07.2023 | F121: Ёжики мясные с рисом в соусе для запекания | G121: 90 | I121: 195 | J121: 10.683 | K121: 12.909 | L121: 9.085
D122: гор.блюдо | E122: №309/2015г Дели | F122: Макароны твердых сортов отварные | G122: 150 | I122: 212 | J122: 5.602 | K122: 5.068 | L122: 35.906
D123: гор.напиток | E123: ТТК от 2021г | F123: Чай с сахаром | G123: 208 | I123: 32 | J123: 0.021 | K123: 0.005 | L123: 7.989
D124: хлеб | F124: Хлеб ржано-пшеничный/ Хлеб пшеничный | G124: 40 | I124: 91 | J124: 2.520 | K124: 0.360 | L124: 18.840
D125: фрукты
D126: Конд. изд. | F126: Печенье весовое | G126: 12.8 | I126: 57 | J126: 0.883 | K126: 1.766 | L126: 9.485
D128: итого | G128: =SUM(G121:G127) -> 500.8 | I128: =SUM(I121:I127) -> 587 | J128: =SUM(J121:J127) -> 19.709 | K128: =SUM(K121:K127) -> 20.108 | L128: =SUM(L121:L127) -> 81.305
A129: =A121 -> 2 | B129: =B121 -> 1 | C129: Обед | D129: закуска
D130: 1 блюдо
D131: 2 блюдо
D132: гарнир
D133: напиток
D134: хлеб бел.
D135: хлеб черн.
D138: итого | G138: =SUM(G129:G137) -> 0 | H138: =SUM(H129:H137) -> 0 | I138: 0 | J138: 0 | K138: 0 | L138: 0
A139: =A121 -> 2 | B139: =B121 -> 1 | C139: Итого за день: | G139: =G128+G138 -> 500.8 | H139: =H128+H138 -> 0 | I139: 587 | J139: 19.709 | K139: 20.108 | L139: 81.305
A140: 2 | B140: 2 | C140: Завтрак | D140: гор.блюдо | E140: ТТК 2021г Июль | F140: Плов с куриными грудками | G140: 200 | I140: 414 | J140: 15.759 | K140: 18.583 | L140: 45.883
D142: гор.напиток | E142: ТТК от 2021г Дели | F142: Чай с сахаром | G142: 208 | I142: 32 | J142: 0.021 | K142: 0.005 | L142: 7.989
D143: хлеб | F143: Хлеб ржано-пшеничный/ Хлеб пшеничный | G143: 42 | I143: 95 | J143: 2.62 | K143: 0.38 | L143: 19.74
D144: фрукты
E145: №52/2015г Дели | F145: Салат из свеклы отварной (с маслом) | G145: 60 | I145: 22 | J145: 1.33 | K145: 1.36 | L145: 1.14
D147: итого | G147: =SUM(G140:G146) -> 510 | I147: =SUM(I140:I146) -> 563 | J147: 19.73 | K147: 20.328 | L147: 74.752
A148: =A140 -> 2 | B148: =B140 -> 2 | C148: Обед | D148: закуска
D149: 1 блюдо
D150: 2 блюдо
D151: гарнир
D152: напиток
D153: хлеб бел.
D154: хлеб черн.
D157: итого | G157: =SUM(G148:G156) -> 0 | H157: =SUM(H148:H156) -> 0 | I157: 0 | J157: 0 | K157: 0 | L157: 0
A158: =A140 -> 2 | B158: =B140 -> 2 | C158: Итого за день: | G158: =G147+G157 -> 510 | H158: =H147+H157 -> 0 | I158: 563 | J158: 19.73 | K158: 20.328 | L158: 74.752
A159: 2 | B159: 3 | C159: Завтрак | D159: гор.блюдо | E159: ТТК от 01.11.2022 | F159: Бифштекс рубленый по-домашнему | G159: 90 | I159: 185 | J159: 10.69 | K159: 12.037 | L159: 8.367
D160: гор.блюдо | E160: № 304/2015г Дели | F160: Каша гречневая вязкая | G160: 150 | I160: 143 | J160: 3.462 | K160: 4.634 | L160: 21.786
D161: гор.напиток | E161: ТТК от 2021г | F161: Чай с сахаром | G161: 208 | I161: 32 | J161: 0.021 | K161: 0.005 | L161: 7.989
D162: хлеб | F162: Хлеб ржано-пшеничный/ Хлеб пшеничный | G162: 40 | I162: 91 | J162: 2.52 | K162: 0.36 | L162: 18.84
D163: фрукты
D164: Конд. изд. | F164: Печенье весовое | G164: 12.8 | I164: 57 | J164: 0.883 | K164: 1.766 | L164: 9.485
D166: итого | G166: =SUM(G159:G165) -> 500.8 | I166: =SUM(I159:I165) -> 508 | J166: 17.576 | K166: 18.802 | L166: 66.467
A167: =A159 -> 2 | B167: =B159 -> 3 | C167: Обед | D167: закуска
D168: 1 блюдо
D169: 2 блюдо
D170: гарнир
D171: напиток
D172: хлеб бел.
D173: хлеб черн.
D176: итого | G176: =SUM(G167:G175) -> 0 | H176: =SUM(H167:H175) -> 0 | I176: 0 | J176: 0 | K176: 0 | L176: 0
A177: =A159 -> 2 | B177: =B159 -> 3 | C177: Итого за день: | G177: =G166+G176 -> 500.8 | H177: =H166+H176 -> 0 | I177: 508 | J177: 17.576 | K177: 18.802 | L177: 66.467
A178: 2 | B178: 4 | C178: Завтрак | D178: гор.блюдо | E178: ТТК 2021г Июль | F178: Котлеты столичные запеченые | G178: 90 | I178: 202 | J178: 12.612 | K178: 13.657 | L178: 7.777
D179: гор.блюдо | F179: Каша рисовая вязкая | G179: 150 | I179: 142 | J179: 2.303 | K179: 4.129 | L179: 23.944
D180: гор.напиток | E180: ТТК №2693 от 14.09.2023 | F180: Напиток из урюка | G180: 200 | I180: 32 | J180: 0.02 | L180: 7.99
D181: хлеб | F181: Хлеб ржано-пшеничный/ Хлеб пшеничный | G181: 40 | I181: 91 | J181: 2.52 | K181: 0.36 | L181: 18.84
D182: фрукты | F182: Плоды и ягоды свежие (яблоки) | G182: 100 | I182: 42 | J182: 0.360 | K182: 0.360 | L182: 8.820
E183: №47/2015 Дели
D185: итого | G185: =G178+G179+G180+G181+G182+G183 -> 580 | I185: =SUM(I178:I184) -> 509 | J185: 17.815 | K185: =SUM(K178:K184) -> 18.506 | L185: 67.371
A186: =A178 -> 2 | B186: =B178 -> 4 | C186: Обед | D186: закуска
D187: 1 блюдо
D188: 2 блюдо
D189: гарнир
D190: напиток
D191: хлеб бел.
D192: хлеб черн.
D195: итого | G195: =SUM(G186:G194) -> 0 | H195: =SUM(H186:H194) -> 0 | I195: 0 | J195: 0 | K195: 0 | L195: 0
A196: =A178 -> 2 | B196: =B178 -> 4 | C196: Итого за день: | H196: =H185+H195 -> 0
A197: 2 | B197: 5 | C197: Завтрак | D197: гор.блюдо | E197: ТТК №2738 от 07.12.2023г2023г | F197: Жаркое по - домашнему | G197: 190 | I197: 365 | J197: 13.05 | K197: 17.03 | L197: 39.88
D198: гор.блюдо
D199: гор.напиток | E199: ТТК от 2021г | F199: Чай с сахаром | G199: 208 | I199: 32 | J199: 0.021 | K199: 0.005 | L199: 7.989
D200: хлеб | F200: Хлеб ржано-пшеничный/ Хлеб пшеничный | G200: 42 | I200: 95 | J200: 2.62 | K200: 0.38 | L200: 19.74
D201: фрукты
E202: №47/2015 Дели | F202: Салат из квашеной капусты | G202: 60 | I202: 51 | J202: 0.983 | K202: 3.052 | L202: 4.632
D204: итого | G204: =SUM(G197:G203) -> 500 | I204: =SUM(I197:I203) -> 543 | J204: 16.674 | K204: 20.467 | L204: 72.241
A205: =A197 -> 2 | B205: =B197 -> 5 | C205: Обед | D205: закуска
D206: 1 блюдо
D207: 2 блюдо
D208: гарнир
D209: напиток
D210: хлеб бел.
D211: хлеб черн.
D214: итого | G214: =SUM(G205:G213) -> 0 | H214: =SUM(H205:H213) -> 0 | I214: 0 | J214: 0 | K214: 0 | L214: 0
A215: =A197 -> 2 | B215: =B197 -> 5 | C215: Итого за день: | G215: =G204+G214 -> 500 | H215: =H204+H214 -> 0 | I215: 543 | J215: 16.674 | K215: 20.467 | L215: 72.241
A216: 2 | B216: 6 | C216: Завтрак | D216: гор.блюдо | E216: №243/2015 Дели | F216: Сосиски отварные | G216: 100 | I216: 156 | J216: 8.700 | K216: 11.500 | L216: 4.400
D217: гор.блюдо | E217: №309/2015г Дели | F217: Макароны твердых сортов отварные | G217: 150 | I217: 212 | J217: 5.602 | K217: 5.068 | L217: 35.906
D218: гор.напиток | E218: ТТК от 2021г | F218: Чай с сахаром | G218: 208 | I218: 32 | J218: 0.021 | K218: 0.005 | L218: 7.989
D219: хлеб | F219: Хлеб ржано-пшеничный/ Хлеб пшеничный | G219: 42 | I219: 95 | J219: 2.620 | K219: 0.380 | L219: 19.740
D220: фрукты
D223: итого | G223: =SUM(G216:G222) -> 500 | I223: =SUM(I216:I222) -> 495 | J223: =SUM(J216:J222) -> 16.943 | K223: 16.953 | L223: =SUM(L216:L222) -> 68.035
A224: =A216 -> 2 | B224: 6 | C224: Обед | D224: закуска
D225: 1 блюдо
D226: 2 блюдо
D227: гарнир
D228: напиток
D229: хлеб бел.
D230: хлеб черн.
D233: итого | G233: =SUM(G224:G232) -> 0 | H233: =SUM(H224:H232) -> 0 | I233: 0 | J233: 0 | K233: 0 | L233: 0
A234: =A216 -> 2 | B234: =B216 -> 6 | C234: Итого за день: | G234: =G223+G233 -> 500 | H234: =H223+H233 -> 0 | I234: 495 | J234: 16.943 | K234: 16.953 | L234: 68.035
